bitfinex/quotes_BTCUSD_20220405
["timestamp","ask_amount","ask_price","bid_price","bid_amount"]
[1649158082103,0.00221229,46639.0,46638.0,0.15651442]
[1649158084755,0.00221229,46639.0,46638.0,0.10292417]
[1649158084961,0.00221229,46639.0,46638.0,0.05292417]
[1649158085057,0.00221229,46639.0,46638.0,0.10292417]
[1649158087451,0.00212442,46639.0,46638.0,0.10292417]
[1649158089759,0.00212442,46639.0,46638.0,0.2101141]
[1649158094452,0.24166475,46639.0,46638.0,0.2101141]
[1649158100315,0.24166475,46639.0,46638.0,0.1601141]
[1649158103635,0.02725375,46639.0,46638.0,0.05292417]
[1649158103835,0.02725375,46639.0,46638.0,0.00292417]
[1649158106301,0.00895208,46639.0,46638.0,0.00292417]
[1649158117901,0.32956208,46639.0,46638.0,0.00292417]
[1649158118898,0.00895208,46639.0,46638.0,0.00292417]
[1649158119454,0.00706741,46639.0,46638.0,0.00292417]
[1649158120303,0.32767741,46639.0,46638.0,0.00292417]
[1649158120915,0.00706741,46639.0,46638.0,0.00292417]
[1649158121018,0.32767741,46639.0,46638.0,0.00292417]
[1649158121114,0.00706741,46639.0,46638.0,0.00292417]
[1649158121216,0.32767741,46639.0,46638.0,0.00292417]
[1649158121316,0.00706741,46639.0,46638.0,0.00292417]
[1649158121415,0.32767741,46639.0,46638.0,0.00292417]
[1649158121716,0.00384833,46637.0,46636.0,0.002]
[1649158121915,0.00384833,46637.0,46636.0,0.00253584]
[1649158126514,0.00384833,46637.0,46636.0,0.00243765]
[1649158126816,0.00384833,46637.0,46636.0,0.00190181]
[1649158132760,0.32445833,46637.0,46636.0,0.00190181]
[1649158132860,0.00384833,46637.0,46636.0,0.00190181]
[1649158132958,0.32445833,46637.0,46636.0,0.00190181]
[1649158133159,0.00384833,46637.0,46636.0,0.00190181]
[1649158133460,0.32445833,46637.0,46636.0,0.00190181]
[1649158134263,0.00384833,46637.0,46636.0,0.00190181]
[1649158134363,0.32445833,46637.0,46636.0,0.00190181]
[1649158134615,0.00384833,46637.0,46636.0,0.00190181]
[1649158136160,0.50384833,46637.0,46636.0,0.00190181]
[1649158140820,0.42651029,46637.0,46636.0,0.00190181]
[1649158145370,0.74712029,46637.0,46636.0,0.00190181]
[1649158145871,1.04712029,46637.0,46636.0,0.00190181]
[1649158146174,0.74712029,46637.0,46636.0,0.00190181]
[1649158146274,1.04712029,46637.0,46636.0,0.00190181]
[1649158146671,0.74712029,46637.0,46636.0,0.00190181]
[1649158146779,1.04712029,46637.0,46636.0,0.00190181]
[1649158151813,0.00690956,46632.0,46628.0,0.2475]
[1649158151911,0.00690956,46632.0,46631.0,0.002]
[1649158152010,0.00690956,46632.0,46631.0,0.00221436]
[1649158155505,0.00690956,46632.0,46631.0,0.002]
[1649158169882,0.43341985,46632.0,46631.0,0.002]
[1649158171133,0.73341985,46632.0,46631.0,0.002]
[1649158171433,1.05402985,46632.0,46631.0,0.002]
[1649158171533,0.43341985,46632.0,46631.0,0.002]
[1649158171634,0.73341985,46632.0,46631.0,0.002]
[1649158171936,1.05402985,46632.0,46631.0,0.002]
[1649158172035,0.75402985,46632.0,46631.0,0.002]
[1649158172237,0.43341985,46632.0,46631.0,0.002]
[1649158172338,0.75402985,46632.0,46631.0,0.002]
[1649158172441,1.05402985,46632.0,46631.0,0.002]
[1649158172540,0.73341985,46632.0,46631.0,0.002]
[1649158172642,1.15402985,46632.0,46631.0,0.002]
[1649158172745,1.19682985,46632.0,46631.0,0.002]
[1649158175622,1.19682985,46632.0,46631.0,0.00142378]
[1649158179018,1.19782985,46632.0,46631.0,0.00142378]
[1649158181787,0.0069536,46625.0,46624.0,0.002]
[1649158184040,0.0079536,46625.0,46624.0,0.002]
[1649158185380,0.3285636,46625.0,46624.0,0.002]
[1649158185481,0.6285636,46625.0,46624.0,0.002]
[1649158186932,0.3079536,46625.0,46624.0,0.002]
[1649158187033,0.6285636,46625.0,46624.0,0.002]
[1649158191118,0.7285636,46625.0,46624.0,0.002]
[1649158191619,0.89025917,46625.0,46624.0,0.002]
[1649158191999,0.93305917,46625.0,46624.0,0.002]
[1649158192297,0.7713636,46625.0,46624.0,0.002]
[1649158202322,0.7285636,46625.0,46624.0,0.002]
[1649158204543,0.0079536,46625.0,46624.0,0.002]
[1649158209177,0.02012307,46625.0,46624.0,0.0437239]
[1649158209274,0.03229254,46625.0,46624.0,0.0437239]
[1649158209375,0.03229254,46625.0,46624.0,0.04467335]
[1649158211767,0.0351896,46622.0,46621.0,0.0643325]
[1649158211866,0.0351896,46622.0,46621.0,0.0536125]
[1649158213718,0.0351896,46622.0,46620.0,0.217955]
[1649158214468,0.01216947,46621.0,46620.0,0.217955]
[1649158214569,0.02433894,46621.0,46620.0,0.207225]
[1649158214869,0.02433894,46621.0,46620.0,0.217955]
[1649158215071,0.02301071,46621.0,46620.0,0.217955]
[1649158215219,0.02301071,46621.0,46620.0,0.70213248]
[1649158215320,0.02301071,46621.0,46620.0,0.43513231]
[1649158215622,0.02301071,46621.0,46620.0,0.52823131]
[1649158215729,0.02301071,46621.0,46620.0,0.69128009]
[1649158215923,0.02301071,46621.0,46620.0,1.01189009]
[1649158216024,0.02301071,46621.0,46620.0,0.69128009]
[1649158216125,0.02301071,46621.0,46620.0,1.01189009]
[1649158216526,0.02301071,46621.0,46620.0,0.7558609]
[1649158216926,0.02301071,46621.0,46620.0,0.6486359]
[1649158217226,0.02301071,46621.0,46620.0,1.10482955]
[1649158217334,0.02301071,46621.0,46620.0,1.69398805]
[1649158217430,0.02301071,46621.0,46620.0,1.70483443]
[1649158217525,0.02301071,46621.0,46620.0,2.44173929]
[1649158217625,0.02301071,46621.0,46620.0,2.18554355]
[1649158217824,0.02301071,46621.0,46620.0,2.52048845]
[1649158218276,0.02301071,46621.0,46620.0,2.50985643]
[1649158219427,0.01216947,46621.0,46620.0,2.50985643]
[1649158219577,0.01216947,46621.0,46620.0,2.53832643]
[1649158219678,0.02301071,46621.0,46620.0,2.60989643]
[1649158220830,0.02301071,46621.0,46620.0,2.61847243]
[1649158221032,0.02301071,46621.0,46620.0,2.60989643]
[1649158221234,0.02301071,46621.0,46620.0,2.58142643]
[1649158222327,0.02301071,46621.0,46620.0,2.61465643]
[1649158222428,0.02301071,46621.0,46620.0,2.72310045]
[1649158223227,0.02301071,46621.0,46620.0,3.03095988]
[1649158223529,0.02301071,46621.0,46620.0,2.92251586]
[1649158224031,0.02301071,46621.0,46620.0,2.72305293]
[1649158224231,0.02301071,46621.0,46620.0,2.73162893]
[1649158224433,0.02301071,46621.0,46620.0,2.72305293]
[1649158225034,0.02301071,46621.0,46620.0,2.68982293]
[1649158225137,0.02301071,46621.0,46620.0,2.58142643]
[1649158225525,0.02301071,46621.0,46620.0,2.689824]
[1649158225824,0.0079536,46625.0,46622.0,0.6546]
[1649158225923,0.0079536,46625.0,46624.0,1.07871649]
[1649158226023,0.0079536,46625.0,46624.0,1.34632618]
[1649158226130,0.0079536,46625.0,46624.0,1.58912618]
[1649158226226,0.0079536,46625.0,46624.0,1.67143104]
[1649158226325,0.00054111,46629.0,46628.0,1.54377935]
[1649158226426,0.00054111,46629.0,46628.0,2.84145835]
[1649158226527,0.00054111,46629.0,46628.0,3.07248484]
[1649158226624,0.01072,46646.0,46629.0,0.975142]
[1649158226726,0.01072,46646.0,46631.0,0.2]
[1649158226826,0.01072,46646.0,46631.0,0.61079854]
[1649158226925,0.01072,46646.0,46631.0,1.0155065]
[1649158227025,0.01072,46646.0,46631.0,1.08718366]
[1649158227127,0.01072,46646.0,46631.0,1.19790366]
[1649158227326,0.01072,46646.0,46631.0,1.50343229]
[1649158227426,0.01072,46646.0,46631.0,2.15803229]
[1649158227579,0.01072,46646.0,46631.0,2.16639202]
[1649158227878,0.01072,46646.0,46631.0,2.15781802]
[1649158228075,0.00052245,46634.0,46631.0,2.15781802]
[1649158228478,0.00052245,46634.0,46631.0,1.90093245]
[1649158228979,0.01072,46646.0,46631.0,1.90093245]
[1649158229315,0.00052245,46634.0,46631.0,1.90093245]
[1649158230218,0.01072,46646.0,46631.0,1.90093245]
[1649158230473,0.00052245,46634.0,46631.0,1.90093245]
[1649158231377,0.01072,46646.0,46631.0,1.90093245]
[1649158231476,0.01072,46646.0,46631.0,1.90950645]
[1649158231728,0.00052389,46634.0,46631.0,1.90950645]
[1649158231826,0.00052389,46634.0,46631.0,1.90093245]
[1649158232634,0.31347236,46644.0,46631.0,1.24633245]
[1649158232830,0.00052389,46634.0,46631.0,1.24633245]
[1649158233481,0.00052389,46634.0,46631.0,1.16402759]
[1649158233830,0.3,46643.0,46631.0,1.16402759]
[1649158234030,0.00052389,46634.0,46631.0,1.16402759]
[1649158234229,0.00052389,46634.0,46631.0,1.25223547]
[1649158234330,0.00052389,46634.0,46631.0,1.16402759]
[1649158234681,0.00052389,46634.0,46631.0,0.96402759]
[1649158234882,0.00052389,46634.0,46631.0,0.97260259]
[1649158234981,0.3,46643.0,46631.0,0.97260259]
[1649158235187,0.00052373,46634.0,46631.0,0.96402759]
[1649158235284,0.00052373,46634.0,46631.0,1.05223547]
[1649158235385,0.00052373,46634.0,46631.0,0.96402759]
[1649158236185,0.3,46643.0,46631.0,0.96402759]
[1649158236287,0.3,46643.0,46631.0,1.04151547]
[1649158236389,0.3,46643.0,46631.0,0.95330759]
[1649158236490,0.00052373,46634.0,46631.0,0.95330759]
[1649158237424,0.3,46643.0,46631.0,0.95330759]
[1649158237626,0.00052373,46634.0,46631.0,0.95330759]
[1649158238428,0.00052373,46634.0,46631.0,1.04152965]
[1649158238630,0.53158614,46643.0,46631.0,1.04152965]
[1649158238830,0.00052376,46634.0,46631.0,0.64139963]
[1649158238929,0.00052376,46634.0,46631.0,0.64997463]
[1649158239229,0.00052376,46634.0,46631.0,0.64139963]
[1649158239331,0.00052376,46634.0,46631.0,0.65211963]
[1649158239839,0.54230614,46643.0,46631.0,0.74034358]
[1649158239930,0.26404948,46637.0,46631.0,0.246591]
[1649158240035,0.26404948,46637.0,46631.0,0.193071]
[1649158240036,0.00052376,46634.0,46631.0,0.193071]
[1649158240131,0.00052376,46634.0,46631.0,0.093071]
[1649158240976,0.3,46636.0,46631.0,0.093071]
[1649158241076,0.65635157,46636.0,46631.0,0.093071]
[1649158241273,0.00052376,46634.0,46631.0,0.093071]
[1649158241578,0.00052376,46634.0,46631.0,0.193071]
[1649158242174,0.26404948,46637.0,46631.0,0.193071]
[1649158242273,0.26404948,46637.0,46631.0,0.1]
[1649158242376,0.3,46636.0,46628.0,1.64377935]
[1649158242476,0.00052375,46634.0,46629.0,0.32061]
[1649158243277,0.31958708,46634.0,46629.0,0.32061]
[1649158243377,0.31906333,46634.0,46629.0,0.32061]
[1649158243727,0.00052376,46633.0,46629.0,0.26488944]
[1649158243827,0.00052376,46633.0,46628.0,1.64377935]
[1649158243927,0.00052376,46633.0,46629.0,0.32061]
[1649158244027,0.00052376,46633.0,46629.0,0.35070349]
[1649158244566,0.26404948,46637.0,46629.0,0.35070349]
[1649158244867,0.00052376,46633.0,46629.0,0.03009349]
[1649158245070,0.00052376,46633.0,46628.0,0.1]
[1649158245218,0.29841301,46630.0,46629.0,0.32061]
[1649158245322,0.29841301,46630.0,46629.0,0.42061]
[1649158245418,0.29841301,46630.0,46629.0,0.1]
[1649158245518,0.29841301,46630.0,46629.0,0.05]
[1649158245620,0.29841301,46630.0,46622.0,0.88]
[1649158245722,0.3,46629.0,46623.0,0.32061]
[1649158245823,0.3,46629.0,46623.0,0.33133]
[1649158246124,0.23230989,46627.0,46623.0,0.33133]
[1649158246677,0.23230989,46627.0,46623.0,0.01072]
[1649158246874,0.23230989,46627.0,46622.0,0.98]
[1649158247227,0.23230989,46627.0,46622.0,0.93]
[1649158247327,0.3,46626.0,46622.0,0.88]
[1649158248326,0.23230989,46627.0,46626.0,9.625e-05]
[1649158248776,0.53230989,46627.0,46626.0,9.625e-05]
[1649158253422,0.53224949,46627.0,46626.0,9.625e-05]
[1649158257876,0.3,46627.0,46626.0,9.625e-05]
[1649158258925,0.84259932,46627.0,46626.0,9.625e-05]
[1649158260960,0.52198932,46627.0,46626.0,9.625e-05]
[1649158261063,0.84259932,46627.0,46626.0,9.625e-05]
[1649158261171,0.94259932,46627.0,46626.0,9.625e-05]
[1649158261268,0.98539932,46627.0,46626.0,9.625e-05]
[1649158262667,1.26651242,46627.0,46626.0,9.625e-05]
[1649158266283,1.23539932,46627.0,46626.0,9.625e-05]
[1649158267469,2.4,46626.0,46617.0,0.001]
[1649158267571,0.32061,46623.0,46617.0,0.001]
[1649158267669,0.32061,46623.0,46620.0,0.00052355]
[1649158267670,0.3,46622.0,46620.0,0.00052355]
[1649158267770,0.32061,46621.0,46620.0,0.00052355]
[1649158267870,0.86341,46621.0,46620.0,0.00052355]
[1649158267969,0.86341,46621.0,46620.0,3.55e-06]
[1649158267970,1.66801,46621.0,46620.0,3.55e-06]
[1649158268071,1.66801,46621.0,46617.0,0.001]
[1649158268172,0.52061,46618.0,46617.0,0.001]
[1649158268270,0.87061,46618.0,46617.0,0.001]
[1649158268374,1.01341,46618.0,46617.0,0.001]
[1649158268471,1.3226593,46618.0,46617.0,0.001]
[1649158268570,1.29454416,46618.0,46617.0,0.001]
[1649158268671,1.94414499,46618.0,46617.0,0.001]
[1649158269077,2.4,46617.0,46616.0,0.002]
[1649158269176,2.73146825,46617.0,46616.0,0.002]
[1649158269280,2.87426825,46617.0,46616.0,0.002]
[1649158269377,2.96167825,46617.0,46616.0,0.002]
[1649158270128,2.4,46616.0,46614.0,0.003]
[1649158270228,2.73146825,46616.0,46614.0,0.003]
[1649158270327,2.87426825,46616.0,46614.0,0.003]
[1649158272233,3.52886825,46616.0,46614.0,0.003]
[1649158272332,2.4,46615.0,46614.0,0.003]
[1649158272481,2.9742693,46615.0,46614.0,0.003]
[1649158272581,3.0742693,46615.0,46614.0,0.003]
[1649158273182,3.7288693,46615.0,46614.0,0.003]
[1649158273285,3.7288693,46615.0,46614.0,0.00241]
[1649158273386,4.2635693,46615.0,46614.0,0.00241]
[1649158274035,4.2635693,46615.0,46611.0,0.00059195]
[1649158274143,0.32061,46610.0,46609.0,0.001]
[1649158274304,2.38253524,46610.0,46605.0,0.00036814]
[1649158274394,0.2,46606.0,46605.0,0.00036814]
[1649158274493,0.83147222,46606.0,46605.0,0.00036814]
[1649158274592,1.42304,46606.0,46605.0,0.00036814]
[1649158274695,2.2813021,46606.0,46601.0,0.002]
[1649158274792,0.32061,46605.0,46601.0,0.002]
[1649158274892,0.86206932,46604.0,46601.0,0.002]
[1649158274994,1.19811,46604.0,46601.0,0.002]
[1649158275092,1.31461746,46604.0,46601.0,0.002]
[1649158275193,1.66792887,46604.0,46601.0,0.002]
[1649158275295,1.47809585,46604.0,46601.0,0.002]
[1649158276898,1.31461746,46604.0,46601.0,0.002]
[1649158276997,1.29811,46604.0,46601.0,0.002]
[1649158277098,1.30105086,46604.0,46601.0,0.002]
[1649158277197,1.30105086,46604.0,46601.0,0.00258222]
[1649158278236,1.30105086,46604.0,46601.0,0.002]
[1649158278442,1.30105086,46604.0,46594.0,0.28557175]
[1649158278443,0.04309735,46595.0,46594.0,0.28557175]
[1649158278639,0.08589735,46595.0,46594.0,0.34630175]
[1649158280194,0.08589735,46595.0,46594.0,0.07573336]
[1649158280293,0.08589735,46595.0,46594.0,0.02573336]
[1649158280394,0.08589735,46595.0,46594.0,0.07573336]
[1649158280495,0.08589735,46595.0,46594.0,0.01500336]
[1649158280596,0.08589735,46595.0,46594.0,0.06500336]
[1649158280697,0.08589735,46595.0,46594.0,0.01500336]
[1649158280797,0.40650735,46595.0,46594.0,0.01500336]
[1649158280995,0.08589735,46595.0,46594.0,0.01500336]
[1649158281146,0.40650735,46595.0,46594.0,0.01500336]
[1649158281782,0.08589735,46595.0,46594.0,0.01500336]
[1649158281884,0.40650735,46595.0,46594.0,0.01500336]
[1649158283485,0.08589735,46595.0,46594.0,0.01500336]
[1649158283585,0.40650735,46595.0,46594.0,0.01500336]
[1649158283690,0.08589735,46595.0,46594.0,0.01500336]
[1649158283837,0.40650735,46595.0,46594.0,0.01500336]
[1649158283936,0.08589735,46595.0,46594.0,0.01500336]
[1649158284140,0.40650735,46595.0,46594.0,0.01500336]
[1649158284340,0.08589735,46595.0,46594.0,0.01500336]
[1649158284440,0.36370735,46595.0,46594.0,0.01500336]
[1649158284640,0.04309735,46595.0,46594.0,0.01500336]
[1649158284742,0.36370735,46595.0,46594.0,0.01500336]
[1649158285841,0.04309735,46595.0,46594.0,0.01500336]
[1649158285987,0.36370735,46595.0,46594.0,0.01500336]
[1649158286292,0.04309735,46595.0,46594.0,0.01500336]
[1649158286390,0.36370735,46595.0,46594.0,0.01500336]
[1649158286493,0.04309735,46595.0,46594.0,0.01500336]
[1649158286691,0.36370735,46595.0,46594.0,0.01500336]
[1649158287692,0.04309735,46595.0,46594.0,0.01500336]
[1649158287843,0.36370735,46595.0,46594.0,0.01500336]
[1649158288545,0.04309735,46595.0,46594.0,0.01500336]
[1649158289575,0.36370735,46595.0,46594.0,0.01500336]
[1649158289974,0.04309735,46595.0,46594.0,0.01500336]
[1649158290074,0.36370735,46595.0,46594.0,0.01500336]
[1649158290326,0.04309735,46595.0,46594.0,0.01500336]
[1649158290525,0.36370735,46595.0,46594.0,0.01500336]
[1649158290678,0.04309735,46595.0,46594.0,0.01500336]
[1649158290777,0.36370735,46595.0,46594.0,0.01500336]
[1649158291729,0.04309735,46595.0,46594.0,0.01500336]
[1649158291926,0.36370735,46595.0,46594.0,0.01500336]
[1649158292327,0.04309735,46595.0,46594.0,0.01500336]
[1649158292577,0.36370735,46595.0,46594.0,0.01500336]
[1649158292778,0.46370735,46595.0,46594.0,0.01500336]
[1649158293533,0.74027807,46595.0,46594.0,0.01500336]
[1649158293637,0.46370735,46595.0,46594.0,0.01500336]
[1649158298326,0.69976973,46595.0,46594.0,0.01500336]
[1649158298527,0.46370735,46595.0,46594.0,0.01209333]
[1649158298629,0.46370735,46595.0,46594.0,0.01064333]
[1649158301754,0.69781649,46595.0,46594.0,0.01064333]
[1649158304167,0.95151609,46595.0,46594.0,0.01064333]
[1649158304317,1.00517809,46595.0,46594.0,0.01064333]
[1649158304803,1.04797809,46595.0,46594.0,0.01064333]
[1649158305105,1.14875579,46595.0,46594.0,0.01064333]
[1649158305204,1.1877293,46595.0,46594.0,0.01064333]
[1649158305305,1.15961882,46595.0,46594.0,0.01064333]
[1649158305505,1.15961882,46595.0,46592.0,0.0035702]
[1649158305506,0.02028665,46593.0,46592.0,0.0035702]
[1649158305606,0.64089665,46593.0,46592.0,0.0035702]
[1649158305705,0.69455968,46593.0,46592.0,0.0035702]
[1649158305805,0.79455968,46593.0,46592.0,0.0035702]
[1649158305906,0.79455968,46593.0,46592.0,0.003]
[1649158306857,0.78369665,46593.0,46592.0,0.003]
[1649158307163,0.16308665,46593.0,46592.0,0.003]
[1649158307262,0.34089665,46593.0,46592.0,0.003]
[1649158307362,0.02028665,46593.0,46592.0,0.003]
[1649158307559,0.34089665,46593.0,46592.0,0.003]
[1649158308038,0.02028665,46593.0,46592.0,0.003]
[1649158308480,0.06729675,46589.0,46588.0,0.054649]
[1649158308582,0.06729675,46589.0,46588.0,0.375259]
[1649158309832,0.06729675,46589.0,46588.0,0.482543]
[1649158310135,0.06729675,46589.0,46588.0,0.532543]
[1649158315780,0.06729675,46589.0,46588.0,0.732543]
[1649158315880,0.02028665,46593.0,46588.0,1.1416352]
[1649158315980,0.02028665,46593.0,46588.0,1.1844352]
[1649158316080,0.02028665,46593.0,46589.0,0.064361]
[1649158316183,0.02028665,46593.0,46590.0,0.09342]
[1649158316280,0.02028665,46593.0,46591.0,0.01073]
[1649158316379,0.02028665,46593.0,46592.0,0.32058]
[1649158316479,0.02028665,46593.0,46592.0,0.41338]
[1649158322895,0.02028665,46593.0,46592.0,0.421962]
[1649158323235,0.02028665,46593.0,46592.0,0.41338]
[1649158326884,0.02028665,46593.0,46592.0,0.421963]
[1649158327230,0.02028665,46593.0,46592.0,0.41338]
[1649158328384,0.90785985,46604.0,46599.0,0.05363558]
[1649158328484,0.89712985,46604.0,46599.0,0.05363558]
[1649158328683,0.89712985,46604.0,46602.0,0.2687554]
[1649158328936,0.89712985,46604.0,46602.0,0.3187554]
[1649158329739,0.89712985,46604.0,46602.0,0.37239098]
[1649158330139,0.89712985,46604.0,46602.0,0.10363558]
[1649158330576,0.28600822,46603.0,46602.0,0.10363558]
[1649158334287,0.58600822,46603.0,46602.0,0.05]
[1649158334383,0.58600822,46603.0,46599.0,0.05055281]
[1649158334789,0.58600822,46603.0,46599.0,0.05]
[1649158334885,0.58600822,46603.0,46599.0,0.05055281]
[1649158335189,0.29372997,46600.0,46599.0,0.05055281]
[1649158335388,0.29372997,46600.0,46599.0,0.00055281]
[1649158335686,0.59372997,46600.0,46599.0,0.00055281]
[1649158335887,0.59372997,46600.0,46594.0,0.05364907]
[1649158336139,0.59372997,46600.0,46597.0,0.00055282]
[1649158337141,0.3,46600.0,46595.0,0.05364852]
[1649158337240,0.58600822,46603.0,46595.0,0.05364852]
[1649158337345,0.58600822,46603.0,46596.0,0.00055282]
[1649158337444,0.28600822,46603.0,46596.0,0.00055282]
[1649158337541,0.58600822,46603.0,46596.0,0.00055282]
[1649158338183,0.25886079,46600.0,46596.0,0.00055282]
[1649158338285,0.25886079,46600.0,46594.0,0.103649]
[1649158338385,0.25886079,46600.0,46594.0,0.053649]
[1649158338586,0.25886079,46600.0,46597.0,0.00055282]
[1649158338687,0.00110564,46596.0,46594.0,0.053649]
[1649158338786,0.00110564,46596.0,46593.0,0.30456079]
[1649158340841,0.00110564,46596.0,46591.0,0.06073]
[1649158341693,0.00110564,46596.0,46591.0,0.05]
[1649158341833,0.00110564,46596.0,46589.0,0.064383]
[1649158341935,0.00110564,46596.0,46591.0,0.2562138]
[1649158342133,0.00110564,46596.0,46591.0,0.25680536]
[1649158342233,0.00110564,46596.0,46591.0,0.30680536]
[1649158343133,0.00110564,46596.0,46591.0,0.3062138]
[1649158343333,0.00110564,46596.0,46591.0,0.30680536]
[1649158344286,0.00110564,46596.0,46591.0,0.3062138]
[1649158344486,0.00110564,46596.0,46591.0,0.30680536]
[1649158344889,0.00110564,46596.0,46591.0,0.05059156]
[1649158345287,0.00110564,46596.0,46591.0,0.00059156]
[1649158345581,0.00110564,46596.0,46589.0,0.064383]
[1649158345778,0.00110564,46596.0,46591.0,0.00059156]
[1649158346579,0.25781908,46596.0,46591.0,0.26780559]
[1649158346780,0.00110564,46596.0,46591.0,0.31721403]
[1649158346980,0.00110564,46596.0,46591.0,0.31780559]
[1649158347982,0.00110564,46596.0,46591.0,0.31721403]
[1649158348133,0.00110564,46596.0,46592.0,0.32061]
[1649158348231,0.00110564,46596.0,46591.0,0.31780559]
[1649158348833,0.00110564,46596.0,46591.0,0.37145525]
[1649158349136,0.00110564,46596.0,46591.0,0.37086369]
[1649158349302,0.00110564,46596.0,46591.0,0.37145525]
[1649158350306,0.00110564,46596.0,46591.0,0.31721403]
[1649158350504,0.00110564,46596.0,46591.0,0.31780559]
[1649158351556,0.00110564,46596.0,46591.0,0.31721403]
[1649158351757,0.00110564,46596.0,46591.0,0.31780559]
[1649158352560,0.00110564,46596.0,46591.0,0.05059156]
[1649158352660,0.00110564,46596.0,46591.0,0.00059156]
[1649158352765,0.00110564,46596.0,46588.0,0.16902693]
[1649158353043,0.00110564,46596.0,46591.0,0.00059156]
[1649158353938,0.00110564,46596.0,46590.0,0.2918305]
[1649158354136,0.00110564,46596.0,46591.0,0.0005726]
[1649158354437,0.00110564,46596.0,46592.0,0.05364839]
[1649158355340,0.00110564,46596.0,46592.0,0.05422098]
[1649158356341,0.00110564,46596.0,46592.0,0.05364839]
[1649158356588,0.00110564,46596.0,46592.0,0.05422098]
[1649158357580,0.00110564,46596.0,46592.0,0.05364839]
[1649158357784,0.00110564,46596.0,46592.0,0.05419993]
[1649158358080,0.00110564,46596.0,46592.0,0.00055154]
[1649158358783,0.00110564,46596.0,46590.0,0.2918305]
[1649158359033,0.00110564,46596.0,46592.0,0.00055154]
[1649158359988,0.00110564,46596.0,46592.0,0.10729394]
[1649158360087,0.00110564,46596.0,46593.0,0.32061]
[1649158360187,0.00110564,46596.0,46593.0,0.42789446]
[1649158360397,0.00110564,46596.0,46594.0,0.05]
[1649158361444,0.00110564,46596.0,46595.0,0.32061]
[1649158361542,0.00110564,46596.0,46594.0,0.05]
[1649158361644,0.00110564,46596.0,46595.0,0.32061]
[1649158361742,0.00110564,46596.0,46594.0,0.10364211]
[1649158361842,0.00110564,46596.0,46595.0,0.05]
[1649158362245,0.00110564,46596.0,46594.0,0.15364211]
[1649158362395,0.00110564,46596.0,46595.0,0.32061]
[1649158362595,0.00110564,46596.0,46595.0,0.37061]
[1649158362696,0.00110564,46596.0,46595.0,0.05]
[1649158362997,0.00110564,46596.0,46594.0,0.15364211]
[1649158363447,0.00099816,46596.0,46595.0,0.32061]
[1649158363648,0.00099816,46596.0,46595.0,0.37061]
[1649158363748,0.00099816,46596.0,46595.0,0.05]
[1649158364048,0.00099816,46596.0,46594.0,0.15364211]
[1649158364292,0.00099816,46596.0,46594.0,0.1]
[1649158365936,0.00099816,46596.0,46592.0,0.05]
[1649158366085,0.00099816,46596.0,46593.0,0.00055285]
[1649158367138,0.00099816,46596.0,46592.0,0.05]
[1649158367339,0.00099816,46596.0,46592.0,0.05055286]
[1649158368328,0.00099816,46596.0,46592.0,0.05]
[1649158368527,0.00099816,46596.0,46592.0,0.05055287]
[1649158369529,0.00099816,46596.0,46592.0,0.05]
[1649158369730,0.00099816,46596.0,46592.0,0.05055287]
[1649158370787,0.00099816,46596.0,46592.0,0.05]
[1649158370985,0.00099816,46596.0,46592.0,0.05055287]
[1649158371930,0.00099816,46596.0,46592.0,0.05]
[1649158372129,0.00099816,46596.0,46592.0,0.05055287]
[1649158373186,0.00099816,46596.0,46592.0,0.05]
[1649158373385,0.00099816,46596.0,46592.0,0.05055287]
[1649158374336,0.00099816,46596.0,46592.0,0.05]
[1649158374536,0.00099816,46596.0,46592.0,0.05055287]
[1649158375581,0.00099816,46596.0,46592.0,0.05]
[1649158375733,0.00099816,46596.0,46592.0,0.05055287]
[1649158375982,0.00099816,46596.0,46593.0,0.32061]
[1649158376081,0.00099816,46596.0,46592.0,0.05055287]
[1649158376783,0.00099816,46596.0,46592.0,0.05]
[1649158376982,0.00099816,46596.0,46592.0,0.05055287]
[1649158377585,0.00099816,46596.0,46593.0,0.05]
[1649158377733,0.00099816,46596.0,46592.0,0.05055287]
[1649158378085,0.00099816,46596.0,46592.0,0.05]
[1649158378184,0.00099816,46596.0,46592.0,0.05055287]
[1649158379135,0.00099816,46596.0,46592.0,0.05]
[1649158379385,0.00099816,46596.0,46592.0,0.05055287]
[1649158380338,0.00099816,46596.0,46592.0,0.05]
[1649158380537,0.00099816,46596.0,46592.0,0.05055287]
[1649158381590,0.00099816,46596.0,46592.0,0.05]
[1649158381791,0.00099816,46596.0,46592.0,0.05055287]
[1649158382744,0.00099816,46596.0,46592.0,0.05]
[1649158382945,0.00099816,46596.0,46592.0,0.05055287]
[1649158383961,0.00099816,46596.0,46592.0,0.05]
[1649158384159,0.00099816,46596.0,46592.0,0.05055287]
[1649158385162,0.00099816,46596.0,46592.0,0.05]
[1649158385361,0.00099816,46596.0,46592.0,0.05055287]
[1649158386114,0.00099816,46596.0,46593.0,0.093373]
[1649158386216,0.00099816,46596.0,46592.0,0.05055287]
[1649158386315,0.00099816,46596.0,46592.0,0.05]
[1649158386565,0.00099816,46596.0,46592.0,0.05055286]
[1649158386788,0.00093252,46596.0,46592.0,0.05055286]
[1649158387383,0.00093252,46596.0,46593.0,0.32061]
[1649158387483,0.00093252,46596.0,46592.0,0.05055286]
[1649158387582,0.00093252,46596.0,46593.0,0.32061]
[1649158387684,0.00093252,46596.0,46593.0,0.3742558]
[1649158387784,0.00093252,46596.0,46593.0,0.1036458]
[1649158387933,0.00093252,46596.0,46594.0,0.103644]
[1649158388033,0.00093252,46596.0,46594.0,0.153644]
[1649158388235,0.00093252,46596.0,46595.0,0.32061]
[1649158388737,0.00093252,46596.0,46594.0,0.153644]
[1649158388886,0.00093252,46596.0,46595.0,0.32061]
[1649158389235,0.00093252,46596.0,46595.0,0.093353]
[1649158390335,0.00093252,46596.0,46595.0,0.32061]
[1649158394140,0.00093252,46596.0,46595.0,0.53061]
[1649158396471,0.00093252,46596.0,46595.0,0.093332]
[1649158407593,0.00093252,46596.0,46595.0,0.303332]
[1649158416634,0.00093252,46596.0,46595.0,0.62795497]
[1649158417037,0.00081892,46596.0,46595.0,0.62795497]
[1649158419435,0.00081892,46596.0,46595.0,0.303332]
[1649158420239,0.00052057,46602.0,46597.0,0.05363799]
[1649158421164,0.87794877,46604.0,46597.0,0.05363799]
[1649158421466,0.00052059,46602.0,46597.0,0.05363799]
[1649158422416,0.87794877,46604.0,46597.0,0.05363799]
[1649158422614,0.00052059,46602.0,46597.0,0.05363799]
[1649158423214,0.00052059,46602.0,46598.0,0.093321]
[1649158423316,0.00052059,46602.0,46598.0,0.09332]